bitfinex/quotes_SOLUSD_20250717
["timestamp","ask_amount","ask_price","bid_price","bid_amount"]
[1752763069264,9.97709481,174.71,174.7,0.91]
[1752763069584,15.70086563,174.71,174.7,0.91]
[1752763069883,15.70086563,174.71,174.7,0.2]
[1752763070058,62.7655496,174.71,174.7,0.2]
[1752763070257,62.7655496,174.71,174.7,1e-08]
[1752763071657,62.7655496,174.71,174.68,1e-08]
[1752763071853,52.76177878,174.69,174.62,0.03]
[1752763072053,9.97709481,174.63,174.62,0.03]
[1752763072268,26.76177878,174.63,174.62,0.03]
[1752763072680,9.97709481,174.64,174.62,0.74]
[1752763072877,30.22,174.66,174.62,0.03]
[1752763073080,30.22,174.66,174.63,0.71]
[1752763073286,9.97709481,174.64,174.63,0.71]
[1752763073666,15.70315985,174.64,174.63,0.71]
[1752763076891,15.70315985,174.64,174.62,0.03]
[1752763077189,9.97709481,174.63,174.62,0.03]
[1752763078385,5.72606504,174.64,174.62,0.03]
[1752763078565,5.72606504,174.64,174.62,0.74]
[1752763078768,9.97709481,174.65,174.63,0.71]
[1752763078988,61.3368335,174.68,174.64,0.71]
[1752763079180,9.97709481,174.65,174.62,0.74]
[1752763079363,9.97709481,174.63,174.62,0.03]
[1752763079787,9.97709481,174.63,174.62,0.74]
[1752763080093,30.24,174.66,174.62,0.74]
[1752763080458,15.70217639,174.67,174.62,10.71709481]
[1752763080677,16.78468397,174.72,174.64,9.97709481]
[1752763080965,9.97709481,174.71,174.66,9.97709481]
[1752763081164,9.97709481,174.71,174.67,0.71]
[1752763081165,5.72409845,174.7,174.67,0.71]
[1752763081373,5.72409845,174.7,174.68,0.71]
[1752763081573,5.72409845,174.7,174.64,26.0]
[1752763081574,5.72409845,174.7,174.69,0.71]
[1752763081781,5.72344322,174.72,174.69,0.71]
[1752763082386,15.70053803,174.72,174.69,0.71]
[1752763082585,15.70053803,174.72,174.7,0.71]
[1752763082796,9.97709481,174.71,174.68,0.71]
[1752763082984,9.97709481,174.7,174.68,0.71]
[1752763083282,5.72442612,174.69,174.68,0.71]
[1752763083666,2.98183104,174.7,174.68,0.71]
[1752763083871,2.98183104,174.7,174.68,36.68709481]
[1752763084072,9.97709481,174.74,174.69,10.68709481]
[1752763084380,2.98128432,174.73,174.7,0.71]
[1752763084770,15.69922802,174.76,174.71,9.97709481]
[1752763084972,5.72213321,174.76,174.72,0.71]
[1752763085287,5.72278814,174.74,174.72,0.71]
[1752763085682,5.72278814,174.74,174.73,0.71]
[1752763085994,9.97709481,174.75,174.73,0.71]
[1752763086172,15.69955588,174.75,174.73,0.71]
[1752763086374,15.69955588,174.75,174.74,0.71]
[1752763086871,5.72246107,174.75,174.74,0.71]
[1752763087080,15.69955588,174.75,174.74,0.71]
[1752763087282,5.72246107,174.75,174.74,0.71]
[1752763087487,15.69955588,174.75,174.74,0.71]
[1752763088496,14.30088644,174.82,174.74,0.71]
[1752763088797,12.95743371,174.77,174.74,0.71]
[1752763088981,6.2495017,174.76,174.75,0.71]
[1752763089300,2.9805307,174.78,174.75,0.71]
[1752763089485,11.9713075,174.77,174.75,0.71]
[1752763089672,8.70211547,174.78,174.76,0.71]
[1752763089867,2.9805307,174.78,174.77,0.71]
[1752763090105,5.72123949,174.79,174.77,0.71]
[1752763090471,11.97074119,174.79,174.78,0.71]
[1752763090801,11.97074119,174.79,174.74,0.71]
[1752763091114,6.2495017,174.77,174.75,0.71]
[1752763091608,5.72123949,174.79,174.76,0.71]
[1752763091914,11.97074119,174.79,174.76,0.71]
[1752763092090,11.97074119,174.79,174.77,0.71]
[1752763092780,11.97074119,174.79,174.74,6.2495017]
[1752763092984,5.72123949,174.79,174.78,0.71]
[1752763093190,2.98010664,174.8,174.78,0.71]
[1752763093495,11.97009703,174.81,174.78,0.71]
[1752763094022,5.72059533,174.81,174.76,0.71]
[1752763094193,6.2495017,174.8,174.77,0.71]
[1752763094506,6.2495017,174.78,174.75,0.71]
[1752763094801,6.2495017,174.78,174.76,0.71]
[1752763095501,5.72213321,174.76,174.73,26.71]
[1752763095674,11.97163491,174.76,174.73,26.0]
[1752763095875,5.72213321,174.76,174.73,0.71]
[1752763096105,6.2495017,174.74,174.71,26.71]
[1752763096291,6.2495017,174.74,174.72,0.71]
[1752763096596,6.2495017,174.75,174.73,0.71]
[1752763096809,6.2495017,174.75,174.74,0.71]
[1752763096974,6.2495017,174.75,174.72,0.71]
[1752763097174,6.2495017,174.74,174.72,0.71]
[1752763097394,6.2495017,174.73,174.7,30.22]
[1752763097574,6.2495017,174.72,174.7,30.22]
[1752763097781,6.2495017,174.71,174.69,0.71]
[1752763099294,6.2495017,174.71,174.7,0.71]
[1752763099474,6.2495017,174.72,174.7,0.71]
[1752763099675,11.97280553,174.73,174.7,0.71]
[1752763099975,11.97280553,174.73,174.67,7.7561017]
[1752763099976,6.2495017,174.72,174.71,0.71]
[1752763100411,6.2495017,174.72,174.68,0.71]
[1752763100633,6.2495017,174.71,174.69,0.71]
[1752763100842,5.72330383,174.73,174.7,0.71]
[1752763101042,6.2495017,174.71,174.7,0.71]
[1752763101215,6.2495017,174.72,174.7,0.71]
[1752763101552,6.2495017,174.72,174.71,0.71]
[1752763101706,11.97294492,174.72,174.69,0.71]
[1752763101912,11.97294492,174.72,174.7,0.71]
[1752763102915,6.2495017,174.71,174.7,0.71]
[1752763103233,6.2495017,174.71,174.67,0.71]
[1752763103439,6.2495017,174.68,174.66,30.2]
[1752763103743,11.97458328,174.67,174.66,30.2]
[1752763104085,5.72508158,174.67,174.66,30.91]
[1752763104210,11.97458328,174.67,174.66,30.91]
[1752763104418,5.72508158,174.67,174.66,30.91]
[1752763104617,11.97433865,174.68,174.66,30.91]
[1752763104828,44.508402,174.73,174.67,0.71]
[1752763105331,0.06,174.75,174.69,32.2495017]
[1752763105531,0.06,174.75,174.7,6.9595017]
[1752763105709,0.06,174.75,174.71,6.2495017]
[1752763105908,0.06,174.75,174.71,37.1595017]
[1752763106114,0.06,174.75,174.74,32.2495017]
[1752763106415,6.2495017,174.8,174.74,32.2495017]
[1752763106618,6.2495017,174.79,174.75,30.91]
[1752763106812,6.2495017,174.79,174.76,0.71]
[1752763107018,5.72049653,174.81,174.76,10.70290972]
[1752763107224,15.71316219,174.82,174.77,26.71]
[1752763107436,9.99290972,174.81,174.78,0.71]
[1752763107617,9.99290972,174.81,174.77,26.0]
[1752763107618,15.71354793,174.81,174.77,26.0]
[1752763107820,5.72063821,174.81,174.79,0.71]
[1752763108446,15.71354793,174.81,174.77,0.71]
[1752763108625,15.71354793,174.81,174.78,0.71]
[1752763108825,15.71354793,174.81,174.79,0.71]
[1752763109037,9.99290972,174.8,174.77,0.71]
[1752763109227,9.99290972,174.79,174.77,0.71]
[1752763109627,9.99290972,174.79,174.76,26.0]
[1752763109844,5.72147843,174.78,174.76,26.71]
[1752763110228,15.71415477,174.79,174.77,0.71]
[1752763110626,5.72124505,174.79,174.76,26.0]
[1752763110947,5.72087942,174.8,174.78,0.71]
[1752763111151,5.72087942,174.8,174.79,0.7]
[1752763111354,15.71340241,174.82,174.79,0.7]
[1752763111652,15.71340241,174.82,174.8,0.7]
[1752763112824,8.69990294,174.83,174.81,0.7]
[1752763113025,15.77247446,174.84,174.82,0.7]
[1752763113224,12.97232745,174.83,174.79,30.2]
[1752763113440,12.97232745,174.83,174.8,0.7]
[1752763113844,5.72016931,174.82,174.8,0.7]
[1752763114158,9.99290972,174.81,174.79,30.2]
[1752763114446,5.72016931,174.82,174.79,30.2]
[1752763114662,15.71307903,174.82,174.8,0.7]
[1752763114957,9.99290972,174.81,174.79,30.2]
[1752763115132,9.99290972,174.8,174.79,30.2]
[1752763115328,9.99290972,174.8,174.78,26.0]
[1752763115534,9.99290972,174.79,174.78,26.0]
[1752763115732,20.0205926,174.82,174.76,30.88]
[1752763115932,5.72115109,174.79,174.77,26.0]
[1752763116169,5.72115109,174.79,174.77,26.7]
[1752763116664,5.72115109,174.79,174.78,0.7]
[1752763116861,15.71379286,174.8,174.78,0.7]
[1752763117326,15.71348273,174.81,174.79,0.7]
[1752763117531,15.71348273,174.81,174.8,0.7]
[1752763118036,15.71348273,174.81,174.78,26.7]
[1752763118245,9.99290972,174.8,174.78,26.7]
[1752763118645,9.99290972,174.79,174.76,30.88]
[1752763118853,9.99290972,174.78,174.76,30.88]
[1752763119157,9.99290972,174.79,174.76,30.88]
[1752763119840,15.71424473,174.79,174.77,0.7]
[1752763120235,15.71424473,174.79,174.78,0.7]
[1752763121165,15.71424473,174.79,174.76,30.18]
[1752763121349,15.71424473,174.79,174.77,0.7]
[1752763121556,15.71424473,174.79,174.78,0.7]
[1752763121747,15.71424473,174.79,174.76,30.18]
[1752763121950,15.71424473,174.79,174.77,0.7]
[1752763122356,15.71424473,174.79,174.78,0.7]
[1752763122671,12.97232745,174.83,174.78,10.69290972]
[1752763122968,9.99290972,174.82,174.79,30.88]
[1752763123164,15.71307903,174.82,174.79,30.88]
[1752763123535,15.71307903,174.82,174.8,0.7]
[1752763123764,15.71307903,174.82,174.81,0.7]
[1752763125072,5.71993011,174.83,174.81,0.7]
[1752763125248,9.99290972,174.82,174.81,0.7]
[1752763125564,9.99290972,174.82,174.79,30.88]
[1752763125764,15.71283983,174.83,174.8,0.7]
[1752763125940,15.71283983,174.83,174.81,0.7]
[1752763126143,0.06,174.84,174.82,30.88]
[1752763126339,0.06,174.84,174.83,0.7]
[1752763126585,0.06,174.84,174.83,10.69290972]
[1752763126865,5.77820769,174.88,174.83,10.69290972]
[1752763127067,5.77820769,174.88,174.84,0.7]
[1752763127376,15.77111741,174.88,174.85,30.88]
[1752763128140,5.77820769,174.88,174.85,30.18]
[1752763128356,0.06,174.88,174.86,0.7]
[1752763128559,0.06,174.88,174.86,10.69290972]
[1752763128951,5.77822031,174.88,174.86,0.7]
[1752763129143,9.99290972,174.87,174.84,26.0]
[1752763129341,9.99290972,174.86,174.84,30.18]
[1752763129781,5.71918787,174.85,174.84,30.18]
[1752763129941,15.71209759,174.85,174.84,30.18]
[1752763130146,15.71209759,174.85,174.82,30.86]
[1752763130378,15.71209759,174.85,174.82,30.16]
[1752763130569,15.71209759,174.85,174.83,0.7]
[1752763131273,15.71183819,174.86,174.84,0.7]
[1752763132545,15.71183819,174.86,174.82,30.86]
[1752763132768,9.99290972,174.83,174.81,30.16]
[1752763132961,9.99290972,174.82,174.78,0.7]
[1752763133163,9.99290972,174.8,174.78,30.86]
[1752763133341,15.71345714,174.81,174.79,0.7]
[1752763133542,15.71345714,174.81,174.8,0.7]
[1752763134087,15.71345714,174.81,174.78,30.16]
[1752763134270,5.72054742,174.81,174.78,30.86]
[1752763134447,9.99290972,174.8,174.79,0.7]
[1752763134648,5.72054742,174.81,174.78,30.16]
[1752763134649,15.71345714,174.81,174.8,0.7]
[1752763134869,5.72054742,174.81,174.8,0.7]
[1752763135058,15.71345714,174.81,174.8,0.7]
[1752763135375,15.71345714,174.81,174.78,30.86]
[1752763135871,15.71345714,174.81,174.79,0.7]
[1752763137193,9.99290972,174.8,174.75,0.73]
[1752763137360,9.99290972,174.78,174.76,30.16]
[1752763137562,9.99290972,174.77,174.76,30.16]
[1752763137753,9.99290972,174.78,174.76,30.86]
[1752763137962,9.99290972,174.77,174.75,0.03]
[1752763138163,9.99290972,174.77,174.75,30.19]
[1752763138362,9.99290972,174.78,174.76,0.7]
[1752763138962,9.99290972,174.77,174.75,26.03]
[1752763139263,15.71461228,174.78,174.76,0.7]
[1752763139681,9.99290972,174.77,174.76,0.7]
[1752763140494,9.99290972,174.77,174.75,26.03]
[1752763140675,9.99290972,174.76,174.75,0.03]
[1752763141083,6.25021661,174.76,174.75,0.03]
[1752763141298,6.43021661,174.76,174.75,0.03]
[1752763141661,6.25021661,174.76,174.75,0.03]
[1752763142163,16.78468397,174.75,174.68,0.03]
[1752763142361,6.25021661,174.69,174.68,0.03]
[1752763142794,6.43021661,174.69,174.68,0.03]
[1752763143160,12.15464273,174.69,174.68,0.03]
[1752763143581,11.97464273,174.69,174.68,0.03]
[1752763144875,5.72442612,174.69,174.68,0.03]
[1752763145207,15.73350179,174.69,174.68,0.03]
[1752763145814,5.72377082,174.71,174.68,0.73]
[1752763146018,10.00907567,174.7,174.68,0.73]
[1752763146303,10.00907567,174.69,174.68,0.03]
[1752763147198,15.73350179,174.69,174.68,0.03]
[1752763147579,5.72442612,174.69,174.68,0.03]
[1752763147773,5.72344322,174.72,174.68,0.73]
[1752763147995,15.73251889,174.72,174.69,0.7]
[1752763148200,10.00907567,174.73,174.69,0.7]
[1752763149088,12.99009153,174.73,174.69,0.7]
[1752763149305,18.71336464,174.73,174.69,0.7]
[1752763149505,18.71336464,174.73,174.7,0.7]
[1752763150389,8.70428897,174.73,174.7,0.7]
[1752763150722,18.71336464,174.73,174.7,0.7]
[1752763151215,10.00907567,174.71,174.69,56.16]
[1752763151512,10.00907567,174.7,174.69,30.16]
[1752763151881,10.00907567,174.7,174.68,0.03]
[1752763152082,10.00907567,174.69,174.68,0.03]
[1752763152296,10.18907567,174.69,174.68,0.03]
[1752763152884,26.97375964,174.69,174.68,0.03]
[1752763153086,32.69818576,174.69,174.68,1e-08]
[1752763153811,40.97088576,174.69,174.68,1e-08]
[1752763155709,32.51818576,174.69,174.68,1e-08]
[1752763156494,22.50911009,174.69,174.68,1e-08]
[1752763156692,15.73350179,174.69,174.68,1e-08]
[1752763159789,15.73350179,174.69,174.68,0.70000001]
[1752763160386,5.72407018,174.71,174.68,0.70000001]
[1752763160590,5.72407018,174.71,174.69,0.7]
[1752763160885,10.00907567,174.7,174.68,1e-08]
[1752763161106,10.00907567,174.69,174.68,1e-08]
[1752763161500,15.73350179,174.69,174.68,1e-08]
[1752763162224,15.73350179,174.69,174.68,0.70000001]
[1752763162392,2.98101586,174.73,174.68,10.70907568]
[1752763162718,5.72323242,174.73,174.69,10.70907567]
[1752763162893,15.73194188,174.74,174.7,0.7]
[1752763163504,15.73194188,174.74,174.71,0.7]
[1752763163901,15.73194188,174.74,174.69,0.7]
[1752763163902,10.00907567,174.72,174.69,0.7]
[1752763165498,15.73272848,174.72,174.69,0.7]
[1752763166024,15.73272848,174.72,174.7,0.7]
[1752763166234,15.73272848,174.72,174.71,0.7]
[1752763166517,15.73222991,174.73,174.71,0.7]
[1752763167093,5.72315424,174.73,174.71,0.7]
[1752763167301,10.00907567,174.72,174.71,0.7]
[1752763167500,5.72315424,174.73,174.71,0.7]
[1752763167699,10.00907567,174.72,174.71,0.7]
[1752763168502,15.73222991,174.73,174.71,0.7]
[1752763169030,6.25175289,174.72,174.71,0.7]
[1752763169197,11.97490713,174.73,174.71,0.7]
[1752763169719,11.97490713,174.73,174.68,56.14000001]
[1752763169720,5.72284047,174.74,174.72,0.7]
[1752763169922,11.97459336,174.74,174.72,0.7]
[1752763170221,2.98087107,174.76,174.72,0.7]
[1752763170402,5.7221998,174.76,174.72,0.7]
[1752763170604,6.25175289,174.77,174.72,6.95175289]
[1752763170920,11.9729937,174.79,174.73,6.95175289]
[1752763171110,11.9729937,174.79,174.74,30.84]
[1752763171304,11.9729937,174.79,174.75,0.69]
[1752763171639,11.97293707,174.79,174.75,0.69]
[1752763172420,11.97293707,174.79,174.76,0.69]
[1752763172631,6.25175289,174.78,174.77,0.69]
[1752763173420,6.25175289,174.79,174.77,0.69]
[1752763174345,5.72093861,174.8,174.74,36.39175289]
[1752763174620,5.72093861,174.8,174.78,0.69]
[1752763174798,11.9726915,174.8,174.79,0.69]
[1752763175005,11.9726915,174.8,174.75,0.69]
[1752763175225,6.25175289,174.79,174.75,0.69]
[1752763175418,11.9726915,174.8,174.75,0.69]
[1752763176429,6.31175289,174.83,174.77,6.25175289]
[1752763176633,6.31175289,174.83,174.78,30.12]
[1752763176935,12.03163913,174.83,174.79,0.69]
[1752763177129,12.03163913,174.83,174.78,30.12]
[1752763177342,12.03163913,174.83,174.8,0.69]
[1752763179204,0.06,174.83,174.81,0.69]
[1752763179610,0.06,174.83,174.82,0.69]
[1752763180233,6.31175289,174.83,174.78,0.69]
[1752763180416,6.31175289,174.83,174.77,30.12]
[1752763180417,0.18,174.82,174.77,30.12]
[1752763180615,6.25175289,174.8,174.77,30.81]
[1752763180835,6.25175289,174.81,174.78,0.69]
[1752763181033,6.25175289,174.81,174.79,0.69]
[1752763181334,5.72064057,174.81,174.8,0.69]
[1752763181539,0.06,174.83,174.8,0.69]
[1752763181739,0.06,174.83,174.82,6.25175289]
[1752763181941,0.06,174.83,174.82,6.94175289]
[1752763182618,5.77984213,174.83,174.82,0.69]
[1752763183737,0.06,174.83,174.82,0.69]
[1752763186255,0.06,174.83,174.82,10.67863418]
[1752763186420,0.06,174.86,174.82,11.25065111]
[1752763186621,0.06,174.86,174.85,9.98863418]
[1752763186942,0.06,174.86,174.85,40.08863418]
[1752763187133,0.06,174.86,174.85,0.69]
[1752763187344,0.06,174.86,174.85,30.1]
[1752763187939,0.06,174.86,174.84,26.0]
[1752763188126,0.06,174.86,174.85,30.1]
[1752763188824,0.06,174.86,174.85,30.79]
[1752763189017,0.06,174.86,174.85,40.77863418]
[1752763189727,0.06,174.86,174.85,41.35055296]
[1752763189925,0.06,174.86,174.85,66.77863418]
[1752763190122,0.06,174.88,174.87,26.0]
[1752763190447,0.1,174.9,174.87,31.16442282]
[1752763190645,0.1,174.9,174.88,40.75863418]
[1752763191025,0.1,174.9,174.89,0.69]
[1752763192751,0.1,174.9,174.89,10.67863418]
[1752763193261,0.1,174.9,174.89,0.69]
[1752763193543,0.1,174.9,174.89,10.67863418]
[1752763195921,0.1,174.9,174.89,0.69]
[1752763196427,0.1,174.9,174.89,10.67863418]
[1752763199129,0.1,174.9,174.87,10.67863418]
[1752763199435,15.80618706,174.9,174.87,0.69]
[1752763199633,9.98863418,174.88,174.83,0.69]
[1752763199833,9.98863418,174.85,174.84,30.08]
[1752763200444,10.34863418,174.85,174.77,1.6452]
[1752763200751,9.98863418,174.81,174.78,34.34]
[1752763201140,9.98863418,174.8,174.78,34.34]
[1752763201742,9.98863418,174.81,174.78,34.34]
[1752763202055,9.98863418,174.81,174.78,30.78]
[1752763202348,9.98863418,174.8,174.78,30.08]
[1752763202553,15.70959649,174.8,174.78,30.08]
[1752763202740,5.72096231,174.8,174.78,30.08]
[1752763202943,15.70959649,174.8,174.78,30.08]
[1752763204232,9.98863418,174.81,174.79,0.7]
[1752763204734,5.72040411,174.82,174.79,0.7]
[1752763204934,9.98863418,174.81,174.79,0.7]
[1752763205960,15.70922671,174.81,174.79,0.7]
[1752763206133,15.70922671,174.81,174.78,30.08]
[1752763206334,15.70922671,174.81,174.78,30.78]
[1752763206554,9.98863418,174.81,174.79,0.7]
[1752763206858,15.70922465,174.81,174.79,0.7]
[1752763207058,15.70922465,174.81,174.78,30.08]
[1752763207262,0.36,174.87,174.79,0.7]
[1752763207437,20.01486817,174.87,174.8,9.98863418]
[1752763207636,9.98863418,174.85,174.81,30.78]
[1752763207854,15.70840039,174.84,174.81,30.78]
[1752763208063,9.98863418,174.83,174.81,30.08]
[1752763208647,9.98863418,174.82,174.81,30.08]
[1752763208847,15.70840039,174.84,174.81,30.78]
[1752763209056,15.70840039,174.84,174.82,0.7]
[1752763209639,15.70840039,174.84,174.81,30.08]
[1752763209838,9.98863418,174.83,174.81,30.08]
[1752763210364,15.70868725,174.83,174.81,30.08]
[1752763210562,9.98863418,174.82,174.81,30.08]
[1752763210760,8.69952709,174.83,174.81,30.08]
[1752763211058,9.98863418,174.82,174.81,30.08]
[1752763211457,8.69952709,174.83,174.81,30.08]
[1752763211653,9.98863418,174.82,174.81,30.08]
[1752763212370,15.70880349,174.82,174.81,30.08]
[1752763213961,15.70880349,174.82,174.79,30.08]
[1752763214167,9.98863418,174.81,174.79,30.08]
[1752763214467,5.72016931,174.82,174.79,30.78]
[1752763214672,5.72016931,174.82,174.8,0.7]
[1752763214865,5.72016931,174.82,174.81,0.7]
[1752763215267,15.70880349,174.82,174.79,30.78]
[1752763215866,9.98863418,174.81,174.79,30.08]
[1752763216576,5.72082379,174.8,174.79,30.08]
[1752763217269,15.70945797,174.8,174.79,30.08]
[1752763217665,5.72082379,174.8,174.79,30.08]
[1752763217869,15.70945797,174.8,174.79,30.08]
[1752763218853,15.70945797,174.8,174.78,0.03]
[1752763219053,6.24697369,174.79,174.78,30.11]
[1752763219656,5.72082379,174.8,174.78,30.11]
[1752763219884,6.24697369,174.79,174.78,30.11]
[1752763220480,11.96812478,174.79,174.78,30.11]
[1752763220985,12.32812478,174.79,174.78,0.03]
[1752763221954,11.96812478,174.79,174.78,0.03]
[1752763223862,12.32812478,174.79,174.78,0.03]
[1752763224060,26.63100251,174.79,174.71,0.03]
[1752763224269,6.24697369,174.73,174.72,30.08]
[1752763224579,6.24697369,174.73,174.72,30.78]
[1752763225366,11.96987258,174.74,174.72,30.78]
[1752763225565,11.96987258,174.74,174.73,0.7]
[1752763225962,6.24697369,174.76,174.73,0.7]
[1752763226162,11.96812478,174.79,174.73,6.94697369]
[1752763226489,11.96812478,174.79,174.74,0.7]
[1752763226661,11.96812478,174.79,174.75,30.08]
[1752763226864,5.72115109,174.79,174.76,0.7]
[1752763227169,11.96812478,174.79,174.75,30.08]
[1752763227473,11.96812478,174.79,174.76,0.7]
[1752763227659,11.96812478,174.79,174.77,0.7]
[1752763227853,11.96812478,174.79,174.77,30.78]
[1752763228253,11.96812478,174.79,174.77,30.08]
[1752763228456,11.96812478,174.79,174.77,30.78]
[1752763229074,5.72115109,174.79,174.78,0.7]
[1752763229266,11.96812478,174.79,174.77,30.08]
[1752763229788,6.24697369,174.78,174.77,30.08]
[1752763230178,6.24697369,174.78,174.71,0.73]
[1752763230179,6.60697369,174.78,174.71,0.73]
[1752763230484,0.36,174.78,174.74,30.08]
[1752763230684,0.36,174.77,174.74,30.08]
[1752763230988,2.98073951,174.77,174.74,30.08]
[1752763231162,2.98073951,174.77,174.75,0.7]
[1752763231580,6.24697369,174.79,174.76,0.68]
[1752763231886,8.70044717,174.81,174.77,30.76]
[1752763232066,14.94742086,174.81,174.78,0.68]
[1752763232259,8.70044717,174.81,174.77,30.08]
[1752763232463,6.24697369,174.8,174.78,0.68]
[1752763232667,8.70044717,174.81,174.77,30.08]
[1752763232668,6.24697369,174.79,174.77,30.08]
[1752763232961,6.24697369,174.8,174.77,30.76]
[1752763233692,5.72115109,174.79,174.77,30.76]
[1752763234001,11.96812478,174.79,174.77,30.76]
[1752763234297,6.24697369,174.78,174.77,30.08]
[1752763234969,6.24697369,174.78,174.75,0.68]
[1752763234970,9.99679189,174.78,174.75,0.68]
[1752763235161,9.99679189,174.78,174.76,30.06]
[1752763235587,5.7218058,174.77,174.76,30.06]
[1752763236691,5.7218058,174.77,174.76,30.74]
[1752763236896,5.7218058,174.77,174.76,30.77]
[1752763237783,5.7218058,174.77,174.76,30.09]
[1752763238778,5.72082379,174.8,174.76,30.09]
[1752763238963,5.72082379,174.8,174.76,30.77]
[1752763239164,9.99679189,174.78,174.76,30.77]
[1752763239882,5.7218058,174.77,174.76,30.77]
[1752763240087,5.7218058,174.77,174.76,30.09]
[1752763240388,16.07859769,174.77,174.76,0.03]
[1752763241095,5.7218058,174.77,174.76,0.03]
[1752763241269,15.71859769,174.77,174.76,0.03]
[1752763241977,5.7218058,174.77,174.76,0.71]
[1752763242184,15.71859769,174.77,174.76,0.71]
[1752763242378,5.7218058,174.77,174.76,0.71]
[1752763244293,5.72153424,174.78,174.76,0.71]
[1752763244670,5.72153424,174.78,174.77,0.68]
[1752763245373,5.72153424,174.78,174.76,0.03]
[1752763245589,5.72153424,174.78,174.76,0.71]
[1752763246196,15.71832613,174.78,174.76,0.71]
[1752763246496,9.99679189,174.77,174.76,0.03]
[1752763248172,15.71859769,174.77,174.76,0.03]
[1752763249482,16.07859769,174.77,174.76,0.03]
[1752763251383,15.71859769,174.77,174.76,0.03]
[1752763251982,16.07859769,174.77,174.76,0.03]
[1752763252294,19.05974633,174.77,174.76,0.03]
[1752763252615,18.42698397,174.76,174.71,0.03]
[1752763252918,9.99679189,174.72,174.71,0.03]
[1752763253309,0.36,174.75,174.71,0.03]
[1752763253491,5.72246065,174.75,174.72,0.68]
[1752763253672,5.72246065,174.75,174.73,0.68]
[1752763254003,9.99679189,174.76,174.74,0.68]
[1752763254376,9.99679189,174.76,174.75,0.68]
[1752763254694,9.99679189,174.76,174.71,30.09]
[1752763254908,9.99679189,174.76,174.72,0.68]
[1752763255202,6.24968874,174.76,174.72,0.68]
[1752763256275,11.97184877,174.76,174.72,0.68]
[1752763256475,11.97141902,174.78,174.73,6.24968874]
[1752763256729,11.97141902,174.78,174.74,0.68]
[1752763257078,15.7180988,174.78,174.74,0.68]
[1752763258107,15.7180988,174.78,174.75,30.04]
[1752763258313,15.7180988,174.78,174.76,0.68]
[1752763258618,8.7012912,174.79,174.77,0.68]
[1752763258797,9.99636852,174.81,174.77,0.68]
[1752763259195,15.71692298,174.81,174.77,0.68]
[1752763259601,5.72025146,174.82,174.77,10.67636852]
[1752763259799,1.5365,174.87,174.79,9.99636852]
[1752763260008,15.71522932,174.86,174.81,9.99636852]
[1752763260320,8.6976337,174.87,174.82,11.24838545]
[1752763260522,8.6976337,174.87,174.83,0.68]
[1752763260694,0.06,174.88,174.85,9.99636852]
[1752763261022,5.77820862,174.88,174.86,0.68]
[1752763261192,5.77820862,174.88,174.87,0.67]
[1752763261995,0.06,174.88,174.87,0.67]
[1752763262410,0.06,174.88,174.85,0.67]
[1752763262723,0.06,174.88,174.86,0.67]
[1752763263113,0.06,174.88,174.86,11.2382546]
[1752763263306,0.06,174.88,174.87,9.99636852]
[1752763263512,0.06,174.88,174.87,10.66636852]
[1752763263723,0.06,174.88,174.87,0.67]
[1752763264032,0.06,174.88,174.87,30.71]
[1752763264400,0.06,174.88,174.87,0.67]
[1752763264602,10.05636852,174.88,174.85,30.02]